Cogmind - Beta 13 *** ADVENTURER MODE // 2024.04.02 @ 14:44:01 Player: Azurite Result: Self-destructed Performance ------------- Evolutions (1) 500 Regions Visited (2) 400 Robots Destroyed (26) 130 Value Destroyed (476) 476 Prototype IDs (4) 80 Alien Tech Used (0) 0 Bonus (0) 0 TOTAL SCORE: 1586 Bonus ------- None Cogmind --------- Core Integrity 376/400 Matter 285/300 Energy 280/280 System Corruption 1% Temperature Cool (0) Movement Treading (160) Location -9/Materials Parts ------- > --- POWER (1) -------- Cooled Ion Engine > --- PROPULSION (2) --- Light Treads Light Treads > --- UTILITY (4) ------ Large Storage Unit Visual Processing Unit Sensor Array Improved Targeting Computer > --- WEAPON (2) ------- Assault Rifle Light Cannon > --- INVENTORY (15) --- Light Ion Engine Cooled Ion Engine Cooled Ion Engine Light Treads Light Treads High-capacity Storage Unit Large Matter Pod (150) Sensor Array Seismic Detector Light Assault Rifle Grenade Launcher Grenade Launcher Mining Laser Plasma Cutter Peak State ------------ > --- POWER ------------ Cooled Ion Engine > --- PROPULSION ------- Light Treads Light Treads > --- UTILITY ---------- Large Storage Unit Visual Processing Unit Sensor Array Improved Targeting Computer > --- WEAPON ----------- Assault Rifle Light Cannon > --- INVENTORY -------- Ion Engine Light Ion Engine Light Nuclear Core Light Treads Light Treads High-capacity Storage Unit Large Matter Pod Sensor Array Seismic Detector Light Assault Rifle Grenade Launcher Grenade Launcher Mining Laser Plasma Cutter [Rating: 14] Favorites ----------- Power Light Ion Engine Engine Light Ion Engine Propulsion Light Treads Treads Light Treads Utility Large Storage Unit Device Seismic Detector Storage Large Storage Unit Processor Signal Interpreter Weapon Assault Rifle Ballistic Gun Assault Rifle Ballistic Cannon Light Cannon Build | -11 -10 -9 ------- Run | Yrd Mat Mat Slots Evolved 2 | . . 2 Power . | . . . Propulsion . | . . . Utility 2 | . . 2 Weapon . | . . . Parts Attached 21 | 7 10 4 Power 2 | 1 . 1 Engine 2 | 1 . 1 Core . | . . . Reactor . | . . . Propulsion 4 | 2 2 . Treads 4 | 2 2 . Leg . | . . . Wheel . | . . . Hover . | . . . Flight . | . . . Utility 9 | 2 4 3 Device 2 | 1 . 1 Storage 4 | 1 3 . Processor 3 | . 1 2 Hackware . | . . . Protection . | . . . Artifact . | . . . Weapon 6 | 2 4 . Energy Gun . | . . . Energy Cannon . | . . . Ballistic Gun 5 | 2 3 . Ballistic Cannon 1 | . 1 . Launcher . | . . . Special Weapon . | . . . Impact Weapon . | . . . Slashing Weapon . | . . . Piercing Weapon . | . . . Special Melee Weapon . | . . . Unidentified Prototypes 1 | . . 1 Parts Lost . | . . . Power . | . . . Propulsion . | . . . Utility . | . . . Weapon . | . . . Highest Loss Streak . | . . . To Critical Strikes . | . . . Average Slot Usage (%) 100 | . 100 100 Engine 13 | . 14 11 Treads 26 | . 28 22 Device 9 | . 9 11 Storage 13 | . 14 11 Processor 10 | . 4 22 Ballistic Gun 13 | . 15 11 Ballistic Cannon 12 | . 12 11 Naked Turns . | . . . Heaviest Build 34 | 12 29 34 Greatest Support 40 | 40 40 40 Greatest Overweight (x) 1 | 1 . . Average Overweight (x) . | . . . Largest Inventory Capacity 20 | 8 20 15 Average Capacity 13 | 7 12 15 Most Carried 15 | 2 15 15 Average Carried 10 | 1 9 13 Final Capacity 15 | 8 15 15 Final Carried 15 | 2 15 14 Class Distribution -------------------- 88% | Mutant 11% | Skirmisher Dominant Class ---------------- Mutant | -10/Materials Mutant | -9/Materials Resources | -11 -10 -9 ----------- Run | Yrd Mat Mat Matter Collected 877 | 201 448 228 Remotely . | . . . Salvage Created 715 | 20 356 339 Parts 55 | 4 26 25 Haulers Intercepted 1 | . 1 . Recyclers Shooed 1 | . 1 . Parts Field Recycled . | . . . Retrieved Matter . | . . . Parts Self-Destructed . | . . . Prevented . | . . . Kills | -11 -10 -9 ------- Run | Yrd Mat Mat Combat Hostiles Destroyed 12 | . 6 6 Guns 7 | . 4 3 Cannons 5 | . 2 3 Classes Destroyed 12 | 1 5 6 Worker 1 | . 1 . Builder 1 | . . 1 Tunneler 1 | 1 . . Hauler 1 | . 1 . Recycler 2 | . 2 . Operator 1 | . . 1 Watcher 7 | . 3 4 Swarmer 6 | . 6 . Grunt 2 | . . 2 Brawler 1 | . . 1 Duelist 1 | . . 1 Sentry 2 | . . 2 Best Kill Streak 4 | 1 4 4 Combat Bots Only 4 | . 3 4 Max Kills in Single Turn 2 | 1 2 2 Gunslinging . | . . . Exploded . | . . . Melee . | . . . Uniques/NPCs Destroyed . | . . . Combat | -11 -10 -9 -------- Run | Yrd Mat Mat Hostile Shots Fired 50 | . 31 19 Missed 14 | . 10 4 Damage Taken 302 | . 124 178 Core 39 | . 15 24 Absorbed by Shields . | . . . Ignored by Resistances 96 | . 42 54 Core Remaining (%) 97 | 100 94 . Volleys Fired 53 | 1 23 29 Largest 2 | 2 2 2 Hottest 55 | 40 55 55 Shots Fired 106 | 2 46 58 Gun 66 | 2 35 29 Cannon 40 | . 11 29 Launcher . | . . . Special . | . . . Kinetic 106 | 2 46 58 Thermal . | . . . Explosive . | . . . Electromagnetic . | . . . Robot Hit Streak 19 | 1 11 19 Robot Miss Streak 2 | . 2 2 Penetration Max . | . . . Secondary Targets 1 | . 1 . Max Gunslinging Chain 1 | . 1 . Shots Hit Robots 78 | 1 33 44 Core Hits 33 | 1 15 17 Critical Kills 2 | 1 . 1 Critical Parts Destroyed . | . . . Critical Strikes 3 | 1 . 2 Destroy 2 | 1 . 1 Blast 1 | . . 1 Melee Attacks . | . . . Impact . | . . . Slashing . | . . . Piercing . | . . . Sneak Attacks . | . . . Combat Hostiles . | . . . Follow-up Attacks . | . . . Damage Inflicted 1123 | 12 434 677 Guns 648 | 12 319 317 Cannons 475 | . 115 360 Explosions . | . . . Melee . | . . . Ramming . | . . . Kinetic 1123 | 12 434 677 Thermal . | . . . Explosive . | . . . Electromagnetic . | . . . Impact . | . . . Slashing . | . . . Piercing . | . . . Highest Corruption 1 | . . 1 Average Corruption 1 | . . 1 Corruption Purged . | . . . Corruption Blocked . | . . . Effects 1 | . . 1 Alerts 1 | . . 1 Overload Shots . | . . . Overflow Damage 29 | . 1 28 Projectiles 29 | . 1 28 Explosions . | . . . Melee . | . . . Knockbacks 7 | . 2 5 Impact . | . . . Kinetic 7 | . 2 5 Secondary . | . . . Self-Inflicted Damage . | . . . Shots . | . . . Rammed . | . . . Targets Rammed . | . . . Kicked . | . . . Crushed . | . . . Highest Temperature 7 | . . 7 Average Temperature 2 | . . 2 Received Heat Transfer 66 | . . 66 Siege Activations . | . . . Robots Corrupted . | . . . Combat Hostiles . | . . . Parts Fried . | . . . Impact Corruptions . | . . . Robots Melted . | . . . Combat Hostiles . | . . . Parts Melted . | . . . Heat Transferred . | . . . Parts Sabotaged . | . . . Parts Stolen . | . . . Parts Stripped . | . . . Power Chain Reactions . | . . . Alert | -11 -10 -9 ------- Run | Yrd Mat Mat Peak Influence 215 | 5 140 215 Initial 2 | . 2 . Average 39 | 2 34 56 Maximum Alert Level 1 | . . 1 Low Security (%) 97 | 100 100 93 Level 1 2 | . . 6 Level 2 . | . . . Level 3 . | . . . Level 4 . | . . . Level 5 . | . . . High Security . | . . . Max Security . | . . . Squads Dispatched 1 | . . 1 Investigation 1 | . . 1 Extermination . | . . . Reinforcement . | . . . Assault . | . . . Garrison . | . . . Intercept . | . . . Searches Triggered . | . . . Construction Impeded . | . . . Haulers Reinforced . | . . . Active Scanning Responses . | . . . Cargo Convoy Interrupts . | . . . Stealth | -11 -10 -9 --------- Run | Yrd Mat Mat Distress Signals 2 | . 1 1 Communications Jammed . | . . . Distress Signals . | . . . Times Spotted 23 | . 10 13 Peak Tracking Total 4 | . 3 4 Tactical Retreats . | . . . Traps | -11 -10 -9 ------- Run | Yrd Mat Mat Traps Triggered 3 | . 2 1 Indirectly . | . . . Trap Hack Attempts . | . . . Triggered . | . . . Disarmed . | . . . Reprogrammed . | . . . Reused . | . . . Traps Extracted . | . . . Installed . | . . . Triggered . | . . . Machines | -11 -10 -9 ---------- Run | Yrd Mat Mat Machines Disabled 2 | . . 2 Max in Single Turn 1 | . . 1 Machines Repaired . | . . . Machines Dismantled . | . . . Machines Sabotaged . | . . . Overloaded Fab Kills . | . . . Hacking | -11 -10 -9 --------- Run | Yrd Mat Mat Machines Accessed 10 | . 7 3 Terminals 10 | . 7 3 Fabricators . | . . . Repair Stations . | . . . Recycling Units . | . . . Scanalyzers . | . . . Garrison Access . | . . . Total Hacks 20 | . 12 8 Successful 9 | . 6 3 Failed 11 | . 6 5 Catastrophic . | . . . Database Lockouts . | . . . Manual 6 | . 2 4 Terminals 20 | . 12 8 Fabricators . | . . . Repair Stations . | . . . Recycling Units . | . . . Scanalyzers . | . . . Garrison Access . | . . . Terminal Hacks 9 | . 6 3 Robot Analysis 1 | . . 1 Prototype ID Bank 1 | . . 1 Branch Access Points 1 | . 1 . Terminal Index 1 | . 1 . Alert Level 1 | . . 1 Locate Traps 1 | . 1 . Zone Layout 3 | . 3 . Fabricator Hacks . | . . . Repair Station Hacks . | . . . Recycling Unit Hacks . | . . . Scanalyzer . | . . . Garrison Access Hacks . | . . . Unauthorized Hacks . | . . . Terminals . | . . . Fabricators . | . . . Repair Stations . | . . . Recycling Units . | . . . Scanalyzers . | . . . Garrison Access . | . . . Data Cores Recovered . | . . . Used . | . . . Hacking Detections 9 | . 6 3 Full Trace Events 1 | . . 1 Feedback Events . | . . . Feedback Blocked . | . . . Robot Schematics Acquired . | . . . Robots Built . | . . . Authchips . | . . . Time . | . . . Total Robot Build Rating . | . . . Part Schematics Acquired . | . . . Parts Built . | . . . Authchips . | . . . Time . | . . . Total Part Build Rating . | . . . Parts Repaired . | . . . Time . | . . . Parts Recycled . | . . . Recycled Matter . | . . . Retrieved Matter . | . . . Retrieved Components . | . . . Parts Scanalyzed . | . . . Part Schematics Acquired . | . . . Parts Damaged . | . . . Bothacking | -11 -10 -9 ------------ Run | Yrd Mat Mat Used RIF Installer . | . . . Robots Hacked . | . . . Non-combat . | . . . Combat . | . . . Robot Hacks Applied . | . . . Relay Couplers Released . | . . . Fabnet Peak Effective % . | . . . Robots Rewired . | . . . Allies Hacked . | . . . Hacks Repelled . | . . . Allies | -11 -10 -9 -------- Run | Yrd Mat Mat Total Allies . | . . . Largest Group . | . . . Highest-Rated Group . | . . . Highest-Rated Ally . | . . . Total Orders . | . . . Ally Attacks . | . . . Total Damage . | . . . Kills . | . . . Allies Corrupted . | . . . Allies Melted . | . . . Intel | -11 -10 -9 ------- Run | Yrd Mat Mat Robot Analysis Total 1 | . . 1 Derelict Logs Recovered . | . . . Drone Launches . | . . . Drone Recoveries . | . . . Exploration | -11 -10 -9 ------------- Run | Yrd Mat Mat Turns Passed 2062 | 84 1337 641 Spaces Moved 1074 | 47 755 272 Core 5 | 5 . . Treads 1069 | 42 755 272 Legs . | . . . Wheels . | . . . Hover . | . . . Flight . | . . . Fastest Speed 50 | 50 160 160 Average Speed 159 | 149 160 160 Slowest Speed 160 | 160 160 160 Overloaded Moves . | . . . Propulsion Burnouts . | . . . Robots Hopped . | . . . Cave-ins Triggered . | . . . Exploration Rate (%) 45 | 4 97 34 Regions Visited 2 Branch Regions . Pre-discovered Areas . | . . . Known Exits Taken 1 | . 1 . Unknown Exits Taken 1 | 1 . . Scrap Searched . | . . . Spaces Dug . | . . . Terrain Destroyed . | . . . Melee . | . . . Projectile . | . . . AOE . | . . . Terrain Rammed . | . . . Walls Destroyed . | . . . Machines Disabled . | . . . Actions | -11 -10 -9 --------- Run | Yrd Mat Mat Total 1314 | 56 838 420 Wait 139 | . 32 107 Move 1072 | 46 754 272 Hop . | . . . Pick Up 23 | 2 16 5 Fast Attach 10 | 7 3 . Attach 2 | . . 2 Detach . | . . . Swap 9 | . 7 2 Drop 6 | . 3 3 Fire 53 | 1 23 29 Melee . | . . . Ram . | . . . Kick . | . . . Crush . | . . . Escape Stasis . | . . . Rewire . | . . . Trap . | . . . Miscellaneous . | . . . Route ------- -11/Scrapyard -10/Materials (discovered 4 exits: *Mat x3 / *Min) -9/Materials (discovered 1 exit: [*Mat]) History --------- Turn | Location | Event 23 | -11/Scrapyard | Discovered new exit (range 16) 85 | -11/Scrapyard | Entered Materials 315 | -10/Materials | Build established: Mutant 320 | -10/Materials | Discovered new exit (range 15) 561 | -10/Materials | Discovered new exit (range 16) 829 | -10/Materials | Identified exit to Mines 965 | -10/Materials | Discovered new exit (range 3) 973 | -10/Materials | Identified exit to Materials 1032 | -10/Materials | Discovered exit to Materials (range 16) 1422 | -10/Materials | Entered another Materials area 1422 | -9/Materials | Evolved 2 slots: Utility x2 1917 | -9/Materials | Discovered new exit (range 17) 2063 | -9/Materials | Self-destructed Last Messages --------------- 01986_ O-16 Technician suffers critical hit (Destroy). 01986_ O-16 Technician destroyed. 01992_ Destroyed Sensor Array. 01992_ Destroyed Hover Unit. 01995_ W-16 Scout destroyed. 02004_ Y-45 Defender destroyed. 02023_ Acquired 3 matter. 02028_ Acquired 1 matter. 02042_ Acquired 19 matter. 02047_ Acquired 3 matter. 02053_ T-07 Excavator is excavating. 02054_ Acquired 1 matter. 02055_ U-05 Engineer lays Concrete. 02057_ Acquired 41 matter. 02057_ T-07 Excavator is excavating. 02057_ U-05 Engineer lays Concrete. 02060_ K-01 Serf collects debris. 02061_ T-07 Excavator is excavating. 02062_ Acquired 4 matter. Map ----- +----------------------------------------------------+ | | | | | | | | | | | | | | | | | | | | | | | | | | | | | ????###############??????????????????????????????? | | ????# #??????????????????????????????? | | ????# #??????????????????????????????? | | ????# #??????????????????????????????? | | ????# #????????????##????????????????? | | ????# #????#####?? #####????????????? | | ????# #????# #? #????????????? | | ?##########+############ < # ? #????????????? | | ?# # #?????????????? | | ## * != #?????????????? | | + ^ ^ ? ! [ * # ###?????????????????? | | ## ^ ###+####### @ ###???????????????????? | | ?# #### ????# u#?????????????????????? | | ?# != #??# ??# #?????????????????????? | | # != #??# ! """ ## #?????????????????????? | | % == #??# """ ## #?????????????????????? | | #??# ! """ ## #?????????????????????? | | # #??# ## #?????????????????????? | | ######## #??########### #?????????????????????? | | ???????# #????????????# #?????????????????????? | | ???????# #????????????# #?????????????????????? | | ???????# #????????????# #?????????????????????? | | ???????# #????????????# #?????????????????????? | | ???????# #?????????" + +?????????????????????? | | ???????# #?????""""" # # ????????????????????? | | ???????# #????? """ # # ???????????????????? | | ???????? #????? ?# #? ???????????????????? | | ???????? ??????#####??# #? ??????????????????? | | ???????? ?????????????# #??##?????????????????? | | ???????????????????????# #?????????????????????? | | ???????????????????????# ########??????????????? | | ???????????????????????# #??????????????? | | ???????????????????????# #??????????????? | | ???????????????????????# #??????????????? | | ???????????????????????######## #??????????????? | | ??????????????????????????????# #??????????????? | +----------------------------------------------------+ Best States ------------- Heat Dissipation 28 Energy Generation 14 Energy Capacity 280 Matter Stores 300 Matter Capacity 300 Sight Range 18 Robot Scan Range 14 Terrain Scan Density 10 Resistance: KI 20 Resistance: TH 20 Resistance: EX 20 Resistance: EM 20 Resistance: I 20 Resistance: S 20 Resistance: P 20 Evasion (%) 40 Targeting Accuracy 6 Recoil Reduction 2 Offensive Hacking 10 Item Schematics ----------------- None Robot Schematics ------------------ None Fabricated ------------ Nothing Alien Tech Used ----------------- None Achievements -------------- None Challenges ------------ None Game ------ Seed MiningBombardmentFrame Manual? 0 Play Time 00:21:28 Cumulative 18.1 hours Start 2024.04.02 @ 14:23:24 End 2024.04.02 @ 14:44:01 Sessions 1 Manual Loads 0 Difficulty Adventurer Special Mode None Game No. 8 Rogue 0 Adventurer 8 Explorer 0 Win Type - Total 0 Types 0/0/0/0/0/0/0/0/0 Lore% 9 Gallery% 16 Achievement% 14 Wizard Run 0 Options --------- Layout 1 ASCII 0 Keyboard 1 Movement Arrows Keybinds 0 Fullscreen 1 Font 48/Smallcaps Map View 50x35 Zoom Use 0% Tactical HUD 1 Map Filters NONE Filters NONE Steam 1 RUN: 0abfb94c-180d-4ee8-a53a-1d8a2335c65f